bitfinex/quotes_BTCUSD_20250829
["timestamp","ask_amount","ask_price","bid_price","bid_amount"]
[1756494783340,0.75831816,108580.0,108570.0,0.48171233]
[1756494784324,0.75830776,108580.0,108570.0,0.48171233]
[1756494784504,0.75830776,108580.0,108570.0,0.48371233]
[1756494784728,0.75830776,108580.0,108570.0,0.29949938]
[1756494784954,0.76028776,108580.0,108570.0,0.25654632]
[1756494785081,1.32360735,108580.0,108570.0,0.16296]
[1756494785474,1.32360735,108580.0,108570.0,0.002]
[1756494785894,1.32518735,108580.0,108570.0,0.16296]
[1756494786535,1.32518735,108580.0,108570.0,0.16196]
[1756494786851,1.32518735,108580.0,108570.0,0.16096]
[1756494787089,1.48514735,108580.0,108570.0,0.002]
[1756494787294,1.88851022,108580.0,108570.0,0.001]
[1756494787662,1.91621122,108580.0,108570.0,0.001]
[1756494787881,1.85284619,108580.0,108570.0,0.001]
[1756494788065,1.85122619,108580.0,108570.0,0.001]
[1756494788270,0.18421295,108570.0,108560.0,0.23076]
[1756494788476,1.32362216,108570.0,108560.0,0.23090324]
[1756494788675,1.32362216,108570.0,108560.0,0.23298324]
[1756494788878,1.32362216,108570.0,108560.0,0.23619324]
[1756494789083,1.32362216,108570.0,108560.0,0.23090324]
[1756494789480,1.32362216,108570.0,108560.0,0.23190324]
[1756494790842,1.32362216,108570.0,108560.0,0.00114324]
[1756494791002,1.32362216,108570.0,108560.0,0.16106324]
[1756494791171,1.32362216,108570.0,108560.0,0.16206324]
[1756494794908,1.32164216,108570.0,108560.0,0.20230514]
[1756494795108,0.76479805,108570.0,108560.0,0.47483137]
[1756494795358,0.75832473,108570.0,108560.0,0.47483137]
[1756494795920,0.57411178,108570.0,108560.0,0.54567137]
[1756494797413,0.01726767,108570.0,108560.0,0.54567137]
[1756494798297,0.74104009,108580.0,108570.0,0.18421295]
[1756494798508,0.75828357,108580.0,108570.0,0.29724522]
[1756494800002,0.75828357,108580.0,108570.0,0.27391227]
[1756494800205,0.76673117,108580.0,108570.0,0.25446632]
[1756494800608,0.76475117,108580.0,108570.0,0.43867927]
[1756494800850,0.76475117,108580.0,108570.0,0.44067927]
[1756494801211,0.79244617,108580.0,108570.0,0.25646632]
[1756494801610,0.79244617,108580.0,108570.0,0.09658632]
[1756494801810,0.79442766,108580.0,108570.0,0.29140627]
[1756494802091,0.79244766,108580.0,108570.0,0.47561922]
[1756494802484,0.79244766,108580.0,108570.0,0.29140627]
[1756494803028,0.79244766,108580.0,108570.0,0.47561922]
[1756494804142,0.23560355,108580.0,108570.0,0.47561922]
[1756494804316,0.79244766,108580.0,108570.0,0.29140627]
[1756494804535,1.35127177,108580.0,108570.0,0.16284]
[1756494805492,1.35127177,108580.0,108570.0,0.16184]
[1756494805979,1.35127177,108580.0,108570.0,0.16284]
[1756494806944,1.35127177,108580.0,108570.0,0.16084]
[1756494807151,0.23758355,108580.0,108570.0,0.16084]
[1756494807352,1.35127177,108580.0,108570.0,0.16184]
[1756494808949,1.35129692,108580.0,108570.0,0.16184]
[1756494809355,1.35129707,108580.0,108570.0,0.16184]
[1756494810467,1.35129707,108580.0,108570.0,0.002]
[1756494810672,1.35129707,108580.0,108570.0,0.1618]
[1756494810890,1.35287707,108580.0,108570.0,0.002]
[1756494811101,1.35287707,108580.0,108570.0,0.1618]
[1756494811342,1.35129707,108580.0,108570.0,0.1618]
[1756494811550,1.13940609,108580.0,108570.0,0.1618]
[1756494811899,1.35130107,108580.0,108570.0,0.1618]
[1756494812163,1.34886042,108580.0,108570.0,0.1618]
[1756494812363,1.34886042,108580.0,108570.0,0.16481]
[1756494812766,0.23563285,108580.0,108570.0,0.16481]
[1756494812994,1.34932107,108580.0,108570.0,0.20885229]
[1756494813201,1.34932107,108580.0,108570.0,0.20681229]
[1756494813370,0.79247696,108580.0,108570.0,0.20885229]
[1756494813780,1.34932107,108580.0,108570.0,0.002]
[1756494813971,1.34932107,108580.0,108570.0,0.1618]
[1756494814202,1.50912107,108580.0,108570.0,0.002]
[1756494814826,1.50912107,108580.0,108570.0,0.001]
[1756494815034,0.18421295,108570.0,108560.0,0.23078324]
[1756494815242,1.32163904,108570.0,108560.0,0.15994324]
[1756494816340,1.34933904,108570.0,108560.0,0.16094324]
[1756494817013,1.34933904,108570.0,108560.0,0.16194324]
[1756494817851,1.34933904,108570.0,108560.0,0.16495324]
[1756494818686,1.34933904,108570.0,108560.0,0.16194324]
[1756494819291,1.33207524,108570.0,108560.0,0.16495324]
[1756494819442,0.23565957,108570.0,108560.0,0.19069999]
[1756494819641,1.34934779,108570.0,108560.0,0.19069999]
[1756494819866,1.34934762,108570.0,108560.0,0.19069999]
[1756494821479,1.34934762,108570.0,108560.0,0.16699324]
[1756494822916,1.34935028,108570.0,108560.0,0.16186324]
[1756494823675,1.34435028,108570.0,108560.0,0.16186324]
[1756494823879,1.34435028,108570.0,108560.0,0.16691324]
[1756494824417,1.34435028,108570.0,108560.0,0.16186324]
[1756494825466,1.34435028,108570.0,108560.0,0.16487324]
[1756494825623,1.34435028,108570.0,108560.0,0.16186324]
[1756494826439,1.34435028,108570.0,108560.0,0.16487324]
[1756494827098,1.50407028,108570.0,108560.0,0.00214324]
[1756494827898,2.45515531,108570.0,108560.0,0.00214324]
[1756494828107,2.45515531,108570.0,108560.0,0.00114324]
[1756494828355,2.47609413,108570.0,108560.0,0.00014324]
[1756494828502,0.89385812,108570.0,108560.0,0.00014324]
[1756494828702,2.56439045,108570.0,108560.0,0.00014324]
[1756494829118,2.74861045,108570.0,108560.0,0.00014324]
[1756494829330,2.74857045,108570.0,108560.0,0.00014324]
[1756494829993,2.74856019,108570.0,108560.0,0.00014324]
[1756494831406,2.76844202,108570.0,108560.0,0.00014324]
[1756494831610,2.79449407,108570.0,108560.0,0.00014324]
[1756494832187,2.86533407,108570.0,108560.0,0.00014324]
[1756494832506,2.70565407,108570.0,108560.0,0.00014324]
[1756494832711,2.83928202,108570.0,108560.0,0.00014324]
[1756494834181,2.96533407,108570.0,108560.0,0.00014324]
[1756494834738,2.94533407,108570.0,108560.0,0.00014324]
[1756494836559,2.98657024,108570.0,108560.0,0.00014324]
[1756494838033,2.94533407,108570.0,108560.0,0.00014324]
[1756494838532,2.91928202,108570.0,108560.0,0.00014324]
[1756494839315,2.75960202,108570.0,108560.0,0.00014324]
[1756494839478,1.99352277,108570.0,108560.0,0.00553324]
[1756494839683,2.00820002,108570.0,108560.0,0.00553324]
[1756494839899,1.50856002,108570.0,108560.0,0.00553324]
[1756494840100,1.66820002,108570.0,108560.0,0.00553324]
[1756494840472,1.9909354,108570.0,108560.0,0.00553324]
[1756494840651,2.00816362,108570.0,108560.0,0.00553324]
[1756494841245,1.50852362,108570.0,108560.0,0.18976315]
[1756494841420,1.50852362,108570.0,108560.0,0.05014542]
[1756494841622,1.50852362,108570.0,108560.0,0.00553324]
[1756494842515,1.50852362,108570.0,108560.0,0.18976315]
[1756494842852,0.36713744,108570.0,108560.0,0.27805947]
[1756494843074,0.91751669,108570.0,108560.0,0.27805947]
[1756494843274,0.75830374,108570.0,108560.0,0.43765947]
[1756494843678,0.20145963,108570.0,108560.0,0.43765947]
[1756494844085,0.75830374,108570.0,108560.0,0.43765947]
[1756494844279,0.75830374,108570.0,108560.0,0.43965947]
[1756494844497,0.75830374,108570.0,108560.0,0.43765947]
[1756494844905,0.75830374,108570.0,108560.0,0.43965947]
[1756494845479,0.75830374,108570.0,108560.0,0.44065947]
[1756494845791,1.4993608,108570.0,108560.0,0.25642956]
[1756494846127,1.4993608,108570.0,108560.0,0.43765947]
[1756494846333,1.4993608,108570.0,108560.0,0.43965947]
[1756494846535,1.4993608,108570.0,108560.0,0.09582956]
[1756494846738,1.4993608,108570.0,108560.0,0.27805947]
[1756494847096,1.4993608,108570.0,108560.0,0.28305947]
[1756494847299,1.4993608,108570.0,108560.0,0.27905947]
[1756494847496,1.4993608,108570.0,108560.0,0.09482956]
[1756494847740,1.4993608,108570.0,108560.0,0.09682956]
[1756494848110,1.49935148,108570.0,108560.0,0.25638956]
[1756494848488,1.49935148,108570.0,108560.0,0.00853324]
[1756494849547,0.94250737,108570.0,108560.0,0.00853324]
[1756494849750,0.94250737,108570.0,108560.0,0.28336234]
[1756494849989,0.94250572,108570.0,108560.0,0.28105947]
[1756494851333,1.49934983,108570.0,108560.0,0.28105947]
[1756494852789,0.94250572,108570.0,108560.0,0.28105947]
[1756494853695,0.75829277,108570.0,108560.0,0.28105947]
[1756494854213,0.94250572,108570.0,108560.0,0.28105947]
[1756494859202,0.94250572,108570.0,108560.0,0.44053947]
[1756494860964,0.94249896,108570.0,108560.0,0.44053947]
[1756494862183,1.49934307,108570.0,108560.0,0.44053947]
[1756494862377,0.38565485,108570.0,108560.0,0.44053947]
[1756494862759,1.49934307,108570.0,108560.0,0.44053947]
[1756494864232,0.75828601,108570.0,108560.0,0.44053947]
[1756494867156,0.75828601,108570.0,108560.0,0.43953947]
[1756494867739,0.75828601,108570.0,108560.0,0.44353947]
[1756494868318,0.2014419,108570.0,108560.0,0.44353947]
[1756494868750,0.18422,108570.0,108560.0,1.3613224]
[1756494868955,0.59389591,108600.0,108590.0,0.18417902]
[1756494869301,0.61762656,108600.0,108590.0,0.43700534]
[1756494869981,0.80178862,108600.0,108590.0,0.43700534]
[1756494870433,0.61762656,108600.0,108590.0,0.43700534]
[1756494871278,0.77805797,108600.0,108590.0,0.43700534]
[1756494871452,0.80178644,108600.0,108590.0,0.43700534]
[1756494871805,0.61762438,108600.0,108590.0,0.43700534]
[1756494872177,0.61115298,108600.0,108590.0,0.43700534]
[1756494872988,0.61115298,108600.0,108590.0,0.43696534]
[1756494873985,0.01725707,108600.0,108590.0,0.43696534]
[1756494874192,0.57410118,108600.0,108590.0,0.43696534]
[1756494874403,0.57349883,108600.0,108590.0,0.43696534]
[1756494874576,0.57349883,108600.0,108590.0,0.27756534]
[1756494874727,0.57349883,108600.0,108590.0,0.43692534]
[1756494874728,0.01665472,108600.0,108590.0,0.43692534]
[1756494874924,0.57349883,108600.0,108590.0,0.43692534]
[1756494875128,0.75766089,108600.0,108590.0,0.43692534]
[1756494875549,0.7751351,108600.0,108590.0,0.43692534]
[1756494876567,0.7751351,108600.0,108590.0,0.27956534]
[1756494876770,0.7751351,108600.0,108590.0,0.44292534]
[1756494877953,0.7751351,108600.0,108590.0,0.43694534]
[1756494878152,1.33197921,108600.0,108590.0,0.43583534]
[1756494878352,0.7751351,108600.0,108590.0,0.43894534]
[1756494878607,0.7751351,108600.0,108590.0,0.43892534]
[1756494879238,0.01665472,108600.0,108590.0,0.43892534]
[1756494879441,0.01665472,108600.0,108590.0,0.43692534]
[1756494879606,0.75766089,108600.0,108590.0,0.43692534]
[1756494879807,0.75766089,108600.0,108590.0,0.43992534]
[1756494880005,0.77573819,108600.0,108590.0,0.43794534]
[1756494880480,0.77573819,108600.0,108590.0,0.43892534]
[1756494880688,0.77573819,108600.0,108590.0,0.43992534]
[1756494881234,0.77573819,108600.0,108590.0,0.09440632]
[1756494881565,1.3325823,108600.0,108590.0,0.25061632]
[1756494881964,1.31592758,108600.0,108590.0,0.25061632]
[1756494882125,0.75908347,108600.0,108590.0,0.43988534]
[1756494883640,1.32238531,108600.0,108590.0,0.003]
[1756494883845,1.32238531,108600.0,108590.0,0.16228]
[1756494884733,1.32238531,108600.0,108590.0,0.15928]
[1756494884871,1.32238531,108600.0,108590.0,0.16028]
[1756494886114,1.32238531,108600.0,108590.0,0.16128]
[1756494886369,1.33961371,108600.0,108590.0,0.16128]
[1756494888141,1.33961371,108600.0,108590.0,0.002]
[1756494888327,2.28839371,108600.0,108590.0,0.002]
[1756494888461,2.84523782,108600.0,108590.0,0.002]
[1756494888828,2.33594514,108600.0,108590.0,0.002]
[1756494888967,2.17667084,108600.0,108590.0,0.002]
[1756494889322,2.33591084,108600.0,108590.0,0.001]
[1756494889951,0.52417902,108590.0,108580.0,0.15352]
[1756494890152,0.18419598,108580.0,108570.0,0.16219]
[1756494890358,0.76473192,108580.0,108570.0,0.29314767]
[1756494890591,0.76473192,108580.0,108570.0,0.29527767]
[1756494891466,0.76473192,108580.0,108570.0,0.29414767]
[1756494892616,0.76474685,108580.0,108570.0,0.29414767]
[1756494892792,0.76474685,108580.0,108570.0,0.25148632]
[1756494893587,0.76474685,108580.0,108570.0,0.25461632]
[1756494893962,0.76474685,108580.0,108570.0,0.43882927]
[1756494894184,0.76474685,108580.0,108570.0,0.25461632]
[1756494896184,0.76474685,108580.0,108570.0,0.00495]
[1756494896387,0.76474685,108580.0,108570.0,0.16415]
[1756494896915,0.76474685,108580.0,108570.0,0.20608613]
[1756494897118,0.76474685,108580.0,108570.0,0.20821613]
[1756494898760,0.76474685,108580.0,108570.0,0.20608613]
[1756494898916,0.76474685,108580.0,108570.0,0.20821613]
[1756494900486,1.32159096,108580.0,108570.0,0.002]
[1756494900668,1.47979096,108580.0,108570.0,0.002]
[1756494900871,1.47975096,108580.0,108570.0,0.002]
[1756494901048,1.92925096,108580.0,108570.0,0.002]
[1756494901676,1.77009096,108580.0,108570.0,0.002]
[1756494901873,1.75284968,108580.0,108570.0,0.002]
[1756494902069,1.77009065,108580.0,108570.0,0.002]
[1756494902329,1.77009065,108580.0,108570.0,0.00495]
[1756494902525,1.77008844,108580.0,108570.0,0.00708]
[1756494903061,1.77008844,108580.0,108570.0,0.00495]
[1756494904168,1.21324433,108580.0,108570.0,0.00708]
[1756494904295,1.21324433,108580.0,108570.0,0.19129295]
[1756494905174,1.03004835,108580.0,108570.0,0.27958927]
[1756494905613,1.20777954,108580.0,108570.0,0.27958927]
[1756494906254,1.02358356,108580.0,108570.0,0.27958927]
[1756494906466,0.57408356,108580.0,108570.0,0.27958927]
[1756494907300,0.01723945,108580.0,108570.0,0.27958927]
[1756494907737,0.55684411,108600.0,108590.0,0.18417902]
[1756494907957,0.55684411,108610.0,108600.0,0.18415426]
[1756494908171,0.58055073,108610.0,108600.0,0.27753058]
[1756494908388,0.58055154,108610.0,108600.0,0.27753058]
[1756494908608,0.57408529,108610.0,108600.0,0.27753058]
[1756494909455,0.75831813,108610.0,108600.0,0.27753058]
[1756494909671,0.57417303,108610.0,108600.0,0.27753058]
[1756494910623,0.01732892,108610.0,108600.0,0.27753058]
[1756494911269,0.01732892,108610.0,108600.0,0.27853058]
[1756494911713,0.57417303,108610.0,108600.0,0.43661058]
[1756494911935,0.01732892,108610.0,108600.0,0.43661058]
[1756494912148,0.57417303,108610.0,108600.0,0.43761058]
[1756494912351,0.01732892,108610.0,108600.0,0.43761058]
[1756494912578,8.774e-05,108610.0,108600.0,0.99645469]
[1756494912794,8.774e-05,108610.0,108600.0,1.35739351]
[1756494913006,0.74093836,108640.0,108630.0,0.18410035]
[1756494913259,0.58061118,108640.0,108630.0,0.47337709]
[1756494913477,0.75824746,108640.0,108630.0,0.47337709]
[1756494914297,0.20140335,108640.0,108630.0,0.47337709]
[1756494914745,0.75824746,108640.0,108630.0,0.47337709]
[1756494914876,0.77441199,108640.0,108630.0,0.47337709]
[1756494915074,0.75824746,108640.0,108630.0,0.47337709]
[1756494915273,0.75824746,108640.0,108630.0,0.47437709]
[1756494915589,0.75824746,108640.0,108630.0,0.47533709]
[1756494915773,0.77438365,108640.0,108630.0,0.12711674]
[1756494915980,0.77435184,108640.0,108630.0,0.28615674]
[1756494916916,0.77435184,108640.0,108630.0,0.12711674]
[1756494917133,0.77435184,108640.0,108630.0,0.47534794]
[1756494919622,0.5741214,108640.0,108630.0,0.47534794]
[1756494919800,0.75821565,108640.0,108630.0,0.47534794]
[1756494920025,0.5741214,108640.0,108630.0,0.47534794]
[1756494920217,0.01727729,108640.0,108630.0,0.47534794]
[1756494922033,8.785e-05,108640.0,108630.0,0.47434794]
[1756494922152,8.785e-05,108640.0,108630.0,0.31430794]
[1756494922361,8.785e-05,108640.0,108630.0,0.47526794]
[1756494922564,8.785e-05,108640.0,108630.0,0.47926794]
[1756494923910,8.785e-05,108640.0,108630.0,0.32030794]
[1756494924147,8.785e-05,108640.0,108630.0,0.47926794]
[1756494924831,0.01722821,108640.0,108630.0,0.47926794]
[1756494925034,0.01722821,108640.0,108630.0,1.37611205]
[1756494925244,8.785e-05,108640.0,108630.0,1.37611205]
[1756494925896,8.785e-05,108640.0,108630.0,1.39705087]
[1756494926115,8.785e-05,108640.0,108630.0,1.95389498]
[1756494926326,8.785e-05,108640.0,108630.0,1.39705087]
[1756494926753,8.785e-05,108640.0,108630.0,1.39505087]
[1756494926953,0.55684411,108670.0,108660.0,0.18406037]
[1756494927142,0.55684411,108670.0,108660.0,0.52477412]
[1756494927143,0.5744516,108670.0,108660.0,0.52477412]
[1756494928383,0.01760749,108670.0,108660.0,0.56653181]
[1756494928593,0.01760749,108670.0,108660.0,0.40961181]
[1756494928792,0.5744516,108670.0,108660.0,0.56849181]
[1756494929196,0.5744516,108670.0,108660.0,0.57249181]
[1756494929813,0.5744516,108670.0,108660.0,0.41361181]
[1756494929814,0.75849503,108670.0,108660.0,0.41361181]
[1756494930018,0.75849503,108670.0,108660.0,0.57249181]
[1756494930429,0.5744516,108670.0,108660.0,0.57249181]
[1756494930870,0.7408706,108680.0,108670.0,0.18404343]
[1756494931054,0.74101356,108680.0,108670.0,0.31118017]
[1756494931198,0.74101356,108680.0,108670.0,0.31428017]
[1756494931404,0.00014296,108680.0,108670.0,0.31428017]
[1756494932005,0.00014296,108680.0,108670.0,0.31528017]
[1756494932212,0.00014296,108680.0,108670.0,0.31728017]
[1756494933610,0.00014296,108680.0,108670.0,0.87412428]
[1756494933812,0.00014296,108680.0,108670.0,0.31728017]
[1756494934089,0.00014296,108680.0,108670.0,0.47612017]
[1756494934293,0.00014296,108680.0,108670.0,0.47512017]
[1756494934642,0.00014296,108680.0,108670.0,0.71628017]
[1756494934843,0.00014296,108680.0,108670.0,0.87612017]
[1756494935048,0.00014296,108680.0,108670.0,0.71528017]
[1756494935247,0.00014296,108680.0,108670.0,0.87908017]
[1756494935649,0.00014296,108680.0,108670.0,1.24001899]
[1756494935872,0.00014296,108680.0,108670.0,1.7968631]
[1756494936225,0.00014296,108680.0,108670.0,1.7955511]
[1756494936366,0.00014296,108680.0,108670.0,1.6407511]
[1756494936565,0.00014296,108680.0,108670.0,1.7995511]
[1756494936803,0.00014296,108680.0,108670.0,1.7985511]
[1756494937016,0.00014296,108680.0,108670.0,1.24970699]
[1756494937219,0.00014296,108680.0,108670.0,1.8065511]
[1756494937459,0.00014296,108680.0,108670.0,1.09090699]
[1756494937637,0.00014296,108680.0,108670.0,1.06696817]
[1756494937835,0.00014296,108680.0,108670.0,1.22572817]
[1756494937985,0.00014296,108680.0,108670.0,1.80843242]
[1756494938190,0.00014296,108680.0,108670.0,1.79943242]
[1756494938613,0.00014296,108680.0,108670.0,1.80543242]
[1756494938810,0.00014296,108680.0,108670.0,1.79943242]
[1756494939788,0.00014296,108680.0,108670.0,1.82537124]
[1756494940080,0.00014296,108680.0,108670.0,1.82137124]
[1756494940498,0.00014296,108680.0,108670.0,1.82437124]
[1756494943539,0.00014296,108680.0,108670.0,1.24566699]
[1756494943743,0.00014296,108680.0,108670.0,1.82437124]
[1756494944401,0.00014296,108680.0,108670.0,1.82129124]
[1756494944604,0.00014296,108680.0,108670.0,1.82029124]
[1756494945076,0.00014296,108680.0,108670.0,1.82629124]
[1756494945875,0.00014296,108680.0,108670.0,1.24758699]
[1756494946071,0.00014296,108680.0,108670.0,1.82629124]
[1756494946474,0.00014296,108680.0,108670.0,1.66761124]
[1756494946694,0.00014296,108680.0,108670.0,1.82629124]
[1756494947969,0.00014296,108680.0,108670.0,1.66761124]
[1756494948173,0.00014296,108680.0,108670.0,1.82629124]
[1756494949481,0.00014296,108680.0,108670.0,1.82625941]
[1756494950082,0.00014296,108680.0,108670.0,1.66757941]
[1756494950321,0.01731513,108680.0,108670.0,1.82621941]
[1756494951216,0.01731513,108680.0,108670.0,1.66757941]
[1756494951526,0.01731513,108680.0,108670.0,1.24552699]
[1756494951729,0.01731513,108680.0,108670.0,1.08894699]
[1756494952003,0.01731513,108680.0,108670.0,1.06800817]
[1756494952220,0.01731513,108680.0,108670.0,1.22660817]
[1756494952420,0.01731513,108680.0,108670.0,1.80528059]
[1756494952823,0.01731513,108680.0,108670.0,1.79528059]
[1756494953025,0.01731513,108680.0,108670.0,1.80328059]
[1756494953432,0.01731513,108680.0,108670.0,1.80028059]
[1756494953838,0.00014296,108680.0,108670.0,1.80328059]
[1756494957677,0.00014296,108680.0,108670.0,1.08488699]
[1756494957856,0.00014296,108680.0,108670.0,1.21940817]
[1756494958040,0.01736355,108680.0,108670.0,1.21940817]
[1756494958719,0.01736355,108680.0,108670.0,1.22249817]
[1756494958920,0.01736355,108680.0,108670.0,1.22455817]
[1756494959130,0.01736355,108680.0,108670.0,1.06599817]
[1756494959323,0.01736355,108680.0,108670.0,1.22455817]
[1756494959729,0.01736355,108680.0,108670.0,0.49998432]
[1756494959916,0.02382668,108680.0,108670.0,0.44404975]
[1756494960116,0.02382668,108680.0,108670.0,0.99972105]
[1756494960316,0.02382668,108680.0,108670.0,1.02065987]
[1756494960317,0.01736355,108680.0,108670.0,1.02065987]
[1756494960515,0.01736355,108680.0,108670.0,1.75765987]
[1756494961086,0.01736355,108680.0,108670.0,1.20398857]
[1756494961313,0.01736355,108680.0,108670.0,1.75965987]
[1756494961461,0.01736355,108680.0,108670.0,1.75465987]
[1756494961680,0.01736355,108680.0,108670.0,1.75865987]
[1756494962144,0.01736355,108680.0,108670.0,1.75265987]
[1756494962325,0.01736355,108680.0,108670.0,1.75865987]
[1756494962526,0.01736355,108680.0,108670.0,1.76165987]
[1756494962826,0.01736355,108680.0,108670.0,1.77902387]
[1756494963034,0.01736355,108680.0,108670.0,1.77602387]
[1756494963234,0.01736355,108680.0,108670.0,1.78002387]
[1756494963625,0.00014296,108680.0,108670.0,1.78002387]
[1756494964262,0.01740176,108680.0,108670.0,1.78002387]
[1756494964632,0.01740176,108680.0,108670.0,2.00118387]
[1756494966013,0.01740176,108680.0,108670.0,1.84262387]
[1756494966215,0.01740176,108680.0,108670.0,2.00114387]
[1756494967390,0.00014296,108680.0,108670.0,2.00114387]
[1756494967637,0.00014296,108680.0,108670.0,1.44547257]
[1756494968040,0.01741022,108680.0,108670.0,1.44547257]
[1756494968240,0.01741022,108680.0,108670.0,2.00114387]
[1756494968391,0.00014296,108680.0,108670.0,2.00114387]
[1756494968983,0.00205538,108690.0,108680.0,0.18402649]
[1756494969118,0.00205538,108690.0,108680.0,1.13126293]
[1756494969308,0.00205538,108690.0,108680.0,1.13332293]
[1756494969508,0.00205538,108690.0,108680.0,1.53332293]
[1756494970126,0.00205538,108690.0,108680.0,1.55178293]
[1756494970963,0.0002,108700.0,108690.0,0.18400956]
[1756494971166,0.0002,108700.0,108690.0,0.98954718]
[1756494971372,0.0002,108700.0,108690.0,0.99160718]
[1756494971574,0.0002,108700.0,108690.0,1.39529518]
[1756494972174,0.0002,108700.0,108690.0,1.40329518]
[1756494972406,0.0002,108700.0,108690.0,1.40829518]
[1756494972734,0.0002,108700.0,108690.0,1.74829518]
[1756494975493,0.0002,108700.0,108690.0,1.19262388]
[1756494975691,0.0002,108700.0,108690.0,1.79028178]
[1756494977774,0.0002,108700.0,108690.0,1.8112206]
[1756494977985,0.0002,108700.0,108690.0,2.4168919]
[1756494978192,0.0002,108710.0,108700.0,0.18399264]
[1756494978402,0.0002,108710.0,108700.0,1.05716026]
[1756494978607,0.0002,108710.0,108700.0,1.06183752]
[1756494978806,0.0002,108710.0,108700.0,1.46183752]
[1756494979105,0.0002,108710.0,108700.0,1.47646928]
[1756494979545,0.0002,108710.0,108700.0,1.50812228]
[1756494980188,1e-08,108710.0,108700.0,1.9190611]
[1756494980397,1e-08,108720.0,108710.0,0.54491453]
[1756494980583,0.00014294,108720.0,108710.0,1.23840941]
[1756494980788,0.00014294,108720.0,108710.0,1.40183941]
[1756494980932,0.00014294,108720.0,108710.0,1.80183941]
[1756494981179,1e-08,108720.0,108710.0,1.95183941]
[1756494981380,0.0002,108750.0,108740.0,0.20486377]
[1756494981580,0.0002,108750.0,108740.0,0.52232009]
[1756494981782,0.0002,108750.0,108740.0,0.34298127]
[1756494981989,0.0002,108750.0,108740.0,0.50138127]
[1756494982191,0.55539856,108750.0,108740.0,0.50138127]
[1756494982919,0.55539856,108750.0,108740.0,0.90138127]
[1756494983862,0.55539856,108750.0,108740.0,0.90534127]
[1756494984066,0.55539856,108750.0,108740.0,0.90734127]
[1756494984822,0.55539856,108750.0,108740.0,0.94875331]
[1756494987074,0.0002,108750.0,108740.0,0.94875331]
[1756494987492,0.0002,108750.0,108740.0,0.95378331]
[1756494988570,0.0002,108750.0,108740.0,1.86992069]
[1756494989435,0.0002,108750.0,108740.0,1.86592069]
[1756494989797,0.0002,108750.0,108740.0,1.86992069]
[1756494990036,0.0002,108750.0,108740.0,1.86792069]
[1756494990192,0.0002,108750.0,108740.0,1.86392069]
[1756494990398,0.0002,108750.0,108740.0,1.87192069]
[1756494990799,0.0002,108750.0,108740.0,1.89756269]
[1756494991181,0.0002,108750.0,108740.0,1.90156269]
[1756494991492,0.0002,108750.0,108740.0,1.18800413]
[1756494991694,0.0002,108750.0,108740.0,1.90152269]
[1756494992352,0.0002,108750.0,108740.0,1.34632413]
[1756494992567,0.0002,108750.0,108740.0,1.90152269]
[1756494993214,0.55615851,108780.0,108770.0,0.18387423]
[1756494993421,0.00143658,108780.0,108770.0,0.53794559]
[1756494994226,0.00143658,108780.0,108770.0,0.53894559]
[1756494994429,0.00143658,108780.0,108770.0,0.584411]
[1756494994610,0.00143658,108780.0,108770.0,0.586411]
[1756494994810,0.00143658,108780.0,108770.0,0.60734982]
[1756494995312,0.00143658,108780.0,108770.0,0.44906982]
[1756494995530,0.00143658,108780.0,108770.0,0.60734982]
[1756494996149,0.00143658,108780.0,108770.0,0.44906982]
[1756494996357,0.00143658,108780.0,108770.0,0.60529982]
[1756494996550,0.00143658,108780.0,108770.0,0.57057478]
[1756494996749,0.00143658,108780.0,108770.0,0.56857478]
[1756494996946,0.00143658,108780.0,108770.0,1.47815355]
[1756494997109,0.00143658,108780.0,108770.0,0.92795499]
[1756494997308,0.00143658,108780.0,108770.0,1.88315355]
[1756494997533,0.00143658,108780.0,108770.0,1.32691499]
[1756494997747,0.00143658,108780.0,108770.0,1.32791499]
[1756494998159,0.00143658,108780.0,108770.0,1.32691499]
[1756494998386,0.00143658,108780.0,108770.0,1.32191499]
[1756494998594,0.00143658,108780.0,108770.0,1.32491499]
[1756494998811,0.00143658,108780.0,108770.0,1.33091499]
[1756494999030,0.00143658,108780.0,108770.0,1.32791499]
[1756495000370,0.00143658,108780.0,108770.0,1.33191499]
[1756495000870,0.00143658,108780.0,108770.0,1.17367499]
[1756495001074,0.00143658,108780.0,108770.0,1.33191499]
[1756495001904,0.00143658,108780.0,108770.0,1.88711355]
[1756495003304,0.00143658,108780.0,108770.0,1.33191499]
[1756495006382,0.55663514,108780.0,108770.0,1.32978499]
[1756495006585,0.00143658,108780.0,108770.0,1.33183499]
[1756495009506,0.55663514,108780.0,108770.0,1.30586617]
[1756495009706,0.00143658,108780.0,108770.0,1.30586617]
[1756495010115,0.55663514,108780.0,108770.0,1.29148596]
[1756495010311,0.3303422,108780.0,108770.0,1.29148596]
[1756495010515,0.3303422,108780.0,108770.0,1.28148596]
[1756495010741,0.55539856,108790.0,108780.0,0.18385732]
[1756495010950,0.57272331,108790.0,108780.0,0.43031364]
[1756495013016,0.57272331,108790.0,108780.0,0.43631364]
[1756495014459,0.01752475,108790.0,108780.0,0.43631364]
[1756495014695,0.57272331,108790.0,108780.0,0.43631364]
[1756495015833,0.57272331,108790.0,108780.0,0.27815364]
[1756495016032,0.57272331,108790.0,108780.0,0.43925364]
[1756495016238,0.57274382,108790.0,108780.0,0.43627364]
[1756495016911,0.55554146,108790.0,108780.0,0.43627364]
[1756495017103,0.01754613,108790.0,108780.0,0.43627364]
[1756495017308,0.01754613,108790.0,108780.0,0.43925364]
[1756495017909,0.01754613,108790.0,108780.0,0.9966022]
[1756495018717,0.01754613,108790.0,108780.0,0.44140364]
[1756495018999,0.01754613,108790.0,108780.0,1.3906022]
[1756495019165,0.01754613,108790.0,108780.0,0.83840364]
[1756495019366,0.01754613,108790.0,108780.0,0.84340364]
[1756495019575,0.01754613,108790.0,108780.0,0.68528364]
[1756495019741,0.01754613,108790.0,108780.0,0.83823364]
[1756495019943,0.57274469,108790.0,108780.0,0.84336364]
[1756495020145,0.01754613,108790.0,108780.0,0.68528364]
[1756495020345,0.01754613,108790.0,108780.0,0.83823364]
[1756495020944,0.01754613,108790.0,108780.0,0.84336364]
[1756495021147,0.02400873,108790.0,108780.0,0.84336364]
[1756495022206,0.02400873,108790.0,108780.0,0.68528364]
[1756495022347,0.57920729,108790.0,108780.0,0.28015364]
[1756495022552,0.76304771,108790.0,108780.0,0.25437632]
[1756495022766,0.76304771,108790.0,108780.0,0.28015364]
[1756495022967,0.02400873,108790.0,108780.0,0.43823364]
[1756495023166,0.57920729,108790.0,108780.0,0.43823364]
[1756495023380,0.57920729,108790.0,108780.0,0.44038364]
[1756495023574,0.02400873,108790.0,108780.0,0.44336364]
[1756495025093,0.57920729,108790.0,108780.0,0.28015364]
[1756495025290,0.55554146,108790.0,108780.0,0.43819364]
[1756495025502,0.57926477,108790.0,108780.0,0.43819364]
[1756495025703,0.76310519,108790.0,108780.0,0.09629632]
[1756495025908,0.76310519,108790.0,108780.0,0.16604]
[1756495026303,1.31830375,108790.0,108780.0,0.16604]